Cogmind - Beta 13 @@@ ROGUE MODE // 2024.04.04 @ 22:48:30 Player: bonio350 Result: Destroyed by G-47 Trooper with Particle Gun Performance ------------- Evolutions (3) 1500 Regions Visited (4) 800 Robots Destroyed (70) 350 Value Destroyed (2186) 2186 Prototype IDs (2) 40 Alien Tech Used (0) 0 Bonus (199) 199 TOTAL SCORE: 5075 Bonus ------- High Alert Combat Kills 199 Cogmind --------- Core Integrity 0/700 Matter 231/300 Energy 63/100 System Corruption 6% Temperature Cool (18) Movement Rolling (100) Location -7/Factory Parts ------- > --- POWER (2) -------- (None) > --- PROPULSION (2) --- Compact Wheel > --- UTILITY (5) ------ Medium Storage Unit Advanced Targeting Computer Component Analysis Suite > --- WEAPON (4) ------- (None) > --- INVENTORY (10) --- Cooled Airjet Xenon Bombardment Thruster Advanced Weight Redist. System Trap Scanner Component Analysis Suite Recalibrator EM Pulse Cannon Peak State ------------ > --- POWER ------------ Light Nuclear Core Light Nuclear Core > --- PROPULSION ------- Airjet Cooled Airjet > --- UTILITY ---------- Medium Storage Unit Advanced Weight Redist. System Advanced Targeting Computer Armor Integrity Analyzer Component Analysis Suite > --- WEAPON ----------- Field Laser Improved EM Pulse Cannon Gauss Rifle Assault Cannon > --- INVENTORY -------- Compact Wheel Compact Wheel Improved Heat Sink Compact Matter Pod Advanced Weight Redist. System Trap Scanner Component Analysis Suite Recalibrator Shock Rifle EM Pulse Cannon [Rating: 45] Favorites ----------- Power Light Nuclear Core Engine Improved Ion Engine Power Core Light Nuclear Core Propulsion Wheel Leg Aluminum Leg Wheel Wheel Hover Unit Airjet Utility Medium Storage Unit Device Advanced Weight Redist. System Storage Medium Storage Unit Processor Advanced Targeting Computer Protection Hardened Light Armor Plating Weapon Ion Cannon Energy Gun Field Laser Energy Cannon Ion Cannon Ballistic Gun Gauss Rifle Ballistic Cannon Assault Cannon Launcher Rocket Launcher Build | -11 -10 -9 -8 -7 ------- Run | Yrd Mat Mat Mat Fac Slots Evolved 6 | . . 2 2 2 Power 1 | . . . . 1 Propulsion . | . . . . . Utility 3 | . . 2 1 . Weapon 2 | . . . 1 1 Parts Attached 88 | 6 1 26 31 24 Power 12 | 1 . 2 3 6 Engine 4 | 1 . 2 1 . Core 8 | . . . 2 6 Reactor . | . . . . . Propulsion 24 | 2 . 5 8 9 Treads . | . . . . . Leg 4 | . . 2 2 . Wheel 18 | 2 . 3 6 7 Hover 2 | . . . . 2 Flight . | . . . . . Utility 23 | 1 1 7 10 4 Device 11 | 1 . 2 5 3 Storage 1 | . 1 . . . Processor 6 | . . 3 3 . Hackware . | . . . . . Protection 5 | . . 2 2 1 Artifact . | . . . . . Weapon 29 | 2 . 12 10 5 Energy Gun 5 | . . 2 2 1 Energy Cannon 10 | . . 5 3 2 Ballistic Gun 5 | 2 . 1 1 1 Ballistic Cannon 1 | . . . . 1 Launcher 8 | . . 4 4 . Special Weapon . | . . . . . Impact Weapon . | . . . . . Slashing Weapon . | . . . . . Piercing Weapon . | . . . . . Special Melee Weapon . | . . . . . Unidentified Prototypes 2 | . . . 1 1 Parts Lost 35 | . . 6 9 20 Power 6 | . . 1 1 4 Propulsion 7 | . . 2 2 3 Utility 10 | . . 2 3 5 Weapon 12 | . . 1 3 8 Highest Loss Streak 9 | . . 5 4 9 To Critical Strikes . | . . . . . Average Slot Usage (%) 91 | . 89 90 93 88 Engine 5 | . 14 10 4 . Core 5 | . . . 4 10 Wheel 14 | . 28 16 15 10 Device 12 | . 14 12 15 9 Storage 8 | . 4 11 9 7 Processor 11 | . . 10 10 14 Protection 5 | . . 6 6 3 Energy Gun 7 | . . 6 6 10 Energy Cannon 9 | . . 4 14 8 Ballistic Gun 2 | . 28 2 . 3 Launcher 4 | . . 7 5 . Naked Turns . | . . . . . Heaviest Build 47 | 7 17 41 41 47 Greatest Support 41 | 20 20 20 29 41 Greatest Overweight (x) 10 | . . 2 3 10 Average Overweight (x) 1 | . . . 1 . Largest Inventory Capacity 10 | 5 10 10 10 10 Average Capacity 9 | 5 6 10 10 10 Most Carried 10 | 4 5 10 10 10 Average Carried 8 | 2 4 8 9 9 Final Capacity 10 | 5 10 10 10 10 Final Carried 10 | 4 4 7 10 7 Class Distribution -------------------- 35% | Gunner 31% | Mutant 17% | Scavenger-Gunner 8% | Scavenger-Bomber 3% | Scavenger-Mutant Dominant Class ---------------- Mutant | -10/Materials Mutant | -9/Materials Gunner | -8/Materials Gunner | -7/Factory Resources | -11 -10 -9 -8 -7 ----------- Run | Yrd Mat Mat Mat Fac Matter Collected 1412 | 256 . 284 502 370 Remotely 211 | . . 211 . . Salvage Created 2704 | 44 56 547 1086 971 Parts 141 | 2 7 41 51 40 Haulers Intercepted 1 | . . . 1 . Recyclers Shooed 1 | . . . 1 . Parts Field Recycled . | . . . . . Retrieved Matter . | . . . . . Parts Self-Destructed . | . . . . . Prevented . | . . . . . Kills | -11 -10 -9 -8 -7 ------- Run | Yrd Mat Mat Mat Fac Combat Hostiles Destroyed 45 | 1 3 13 18 10 Guns 18 | 1 3 4 4 6 Cannons 11 | . . 2 6 3 AOE 13 | . . 6 6 1 Classes Destroyed 13 | 1 2 5 2 3 Worker 4 | . . 2 2 . Builder 5 | . . 1 4 . Tunneler 3 | . 1 . 2 . Hauler 1 | . . . 1 . Recycler 7 | . . . . 7 Mechanic 1 | . . 1 . . Watcher 4 | . . 2 1 1 Swarmer 7 | . 3 . . 4 Grunt 26 | 1 . 8 13 4 Brawler 1 | . . . . 1 Duelist 1 | . . . 1 . Sentry 9 | . . 5 4 . Hunter 1 | . . . . 1 Best Kill Streak 8 | 1 4 8 7 6 Combat Bots Only 5 | 1 3 5 3 4 Max Kills in Single Turn 5 | 1 2 3 2 5 Gunslinging . | . . . . . Exploded 2 | . . 2 1 1 Melee . | . . . . . Uniques/NPCs Destroyed . | . . . . . Combat | -11 -10 -9 -8 -7 -------- Run | Yrd Mat Mat Mat Fac Hostile Shots Fired 314 | 5 16 57 69 167 Missed 87 | . 5 16 21 45 Damage Taken 4288 | 54 92 611 1119 2412 Core 1018 | 33 33 80 166 706 Absorbed by Shields . | . . . . . Core Remaining (%) 77 | 86 73 80 69 . Volleys Fired 125 | 3 4 38 49 31 Largest 4 | 2 2 2 3 4 Hottest 266 | 40 40 126 186 266 Shots Fired 309 | 6 8 65 130 100 Gun 151 | 6 8 38 36 63 Cannon 132 | . . 16 79 37 Launcher 26 | . . 11 15 . Special . | . . . . . Kinetic 45 | 6 8 6 2 23 Thermal 227 | . . 48 112 67 Explosive 19 | . . 11 8 . Electromagnetic 18 | . . . 8 10 Robot Hit Streak 17 | 2 1 9 17 7 Robot Miss Streak 4 | 3 2 4 4 3 Penetration Max 1 | . . . . 1 Secondary Targets 1 | . . . . 1 Max Gunslinging Chain 1 | . . . . 1 Shots Hit Robots 183 | 3 3 35 87 55 Core Hits 104 | 2 4 25 42 31 Critical Kills 1 | . . . 1 . Critical Parts Destroyed 1 | . . . . 1 Critical Strikes 4 | . . . 3 1 Burn 2 | . . . 2 . Meltdown 1 | . . . 1 . Destroy 1 | . . . . 1 Melee Attacks . | . . . . . Impact . | . . . . . Slashing . | . . . . . Piercing . | . . . . . Sneak Attacks . | . . . . . Combat Hostiles . | . . . . . Follow-up Attacks . | . . . . . Damage Inflicted 5681 | 37 44 1314 2562 1724 Guns 1554 | 37 44 369 433 671 Cannons 1845 | . . 182 1187 476 Explosions 2259 | . . 763 921 575 Melee . | . . . . . Ramming 23 | . . . 21 2 Kinetic 498 | 37 44 24 43 350 Thermal 2763 | . . 527 1633 603 Explosive 1848 | . . 763 510 575 Electromagnetic 549 | . . . 355 194 Impact . | . . . . . Slashing . | . . . . . Piercing . | . . . . . Highest Corruption 6 | . . . . 6 Average Corruption 5 | . . . . 5 Corruption Purged . | . . . . . Corruption Blocked . | . . . . . Effects 2 | . . . . 2 Message Errors 1 | . . . . 1 Energy Discharges 1 | . . . . 1 Overload Shots . | . . . . . Overflow Damage 156 | . . 25 51 80 Projectiles 3 | . . . 2 1 Explosions 153 | . . 25 49 79 Melee . | . . . . . Knockbacks . | . . . . . Impact . | . . . . . Kinetic . | . . . . . Secondary . | . . . . . Self-Inflicted Damage 301 | . . 23 65 213 Shots 6 | . . 1 3 2 Rammed 3 | . . . 2 1 Targets Rammed 3 | . . . 2 1 Kicked . | . . . . . Crushed . | . . . . . Highest Temperature 588 | 12 . 225 315 588 Average Temperature 135 | 7 . 72 69 211 Received Heat Transfer 1656 | 30 . 273 390 963 Effects 18 | . . . . 18 Shutdowns 6 | . . . . 6 Energy Bleed 1 | . . . . 1 Interference 1 | . . . . 1 Matter Decay 3 | . . . . 3 Short Circuit 2 | . . . . 2 Damage (minor) 1 | . . . . 1 Damage (major) 3 | . . . . 3 Damage (core) 1 | . . . . 1 Siege Activations . | . . . . . Robots Corrupted . | . . . . . Combat Hostiles . | . . . . . Parts Fried 1 | . . . 1 . Impact Corruptions . | . . . . . Robots Melted 3 | . . 1 2 . Combat Hostiles 3 | . . 1 2 . Parts Melted 8 | . . 3 3 2 Heat Transferred 5119 | . . 1036 2986 1097 Parts Sabotaged . | . . . . . Parts Stolen . | . . . . . Parts Stripped . | . . . . . Power Chain Reactions 1 | . . . 1 . Alert | -11 -10 -9 -8 -7 ------- Run | Yrd Mat Mat Mat Fac Peak Influence 665 | 20 103 352 665 632 Initial 302 | . 13 42 148 302 Average 320 | 3 29 191 374 443 Maximum Alert Level 2 | . . 1 2 2 Low Security (%) 25 | 100 100 49 13 . Level 1 37 | . . 50 48 21 Level 2 36 | . . . 37 78 Level 3 . | . . . . . Level 4 . | . . . . . Level 5 . | . . . . . High Security . | . . . . . Max Security . | . . . . . Squads Dispatched 6 | . . 2 2 2 Investigation . | . . . . . Extermination . | . . . . . Reinforcement 4 | . . 2 1 1 Assault 2 | . . . 1 1 Garrison . | . . . . . Intercept . | . . . . . Searches Triggered . | . . . . . Construction Impeded . | . . . . . Haulers Reinforced . | . . . . . Active Scanning Responses . | . . . . . Cargo Convoy Interrupts . | . . . . . Stealth | -11 -10 -9 -8 -7 --------- Run | Yrd Mat Mat Mat Fac Distress Signals 2 | . . . 2 . Communications Jammed . | . . . . . Distress Signals . | . . . . . Times Spotted 72 | 1 6 19 26 20 Peak Tracking Total 6 | 1 3 4 4 6 Tactical Retreats 8 | . . 3 2 3 Traps | -11 -10 -9 -8 -7 ------- Run | Yrd Mat Mat Mat Fac Traps Triggered 1 | . . 1 . . Indirectly . | . . . . . Trap Hack Attempts . | . . . . . Triggered . | . . . . . Disarmed . | . . . . . Reprogrammed . | . . . . . Reused . | . . . . . Traps Extracted . | . . . . . Installed . | . . . . . Triggered . | . . . . . Machines | -11 -10 -9 -8 -7 ---------- Run | Yrd Mat Mat Mat Fac Machines Disabled 9 | . . . 6 3 Max in Single Turn 3 | . . . 1 3 Garrison Access 1 | . . . 1 . Machines Repaired . | . . . . . Machines Dismantled . | . . . . . Machines Sabotaged . | . . . . . Overloaded Fab Kills . | . . . . . Hacking | -11 -10 -9 -8 -7 --------- Run | Yrd Mat Mat Mat Fac Machines Accessed 3 | . 1 2 . . Terminals 3 | . 1 2 . . Fabricators . | . . . . . Repair Stations . | . . . . . Recycling Units . | . . . . . Scanalyzers . | . . . . . Garrison Access . | . . . . . Total Hacks 3 | . 1 2 . . Successful 2 | . 1 1 . . Failed 1 | . . 1 . . Catastrophic . | . . . . . Database Lockouts . | . . . . . Manual . | . . . . . Terminals 3 | . 1 2 . . Fabricators . | . . . . . Repair Stations . | . . . . . Recycling Units . | . . . . . Scanalyzers . | . . . . . Garrison Access . | . . . . . Terminal Hacks 2 | . 1 1 . . Record 1 | . 1 . . . Hauler Manifests 1 | . . 1 . . Fabricator Hacks . | . . . . . Repair Station Hacks . | . . . . . Recycling Unit Hacks . | . . . . . Scanalyzer . | . . . . . Garrison Access Hacks . | . . . . . Unauthorized Hacks . | . . . . . Terminals . | . . . . . Fabricators . | . . . . . Repair Stations . | . . . . . Recycling Units . | . . . . . Scanalyzers . | . . . . . Garrison Access . | . . . . . Data Cores Recovered . | . . . . . Used . | . . . . . Hacking Detections 1 | . . 1 . . Full Trace Events . | . . . . . Feedback Events . | . . . . . Feedback Blocked . | . . . . . Robot Schematics Acquired . | . . . . . Robots Built . | . . . . . Authchips . | . . . . . Time . | . . . . . Total Robot Build Rating . | . . . . . Part Schematics Acquired . | . . . . . Parts Built . | . . . . . Authchips . | . . . . . Time . | . . . . . Total Part Build Rating . | . . . . . Parts Repaired . | . . . . . Time . | . . . . . Parts Recycled . | . . . . . Recycled Matter . | . . . . . Retrieved Matter . | . . . . . Retrieved Components . | . . . . . Parts Scanalyzed . | . . . . . Part Schematics Acquired . | . . . . . Parts Damaged . | . . . . . Bothacking | -11 -10 -9 -8 -7 ------------ Run | Yrd Mat Mat Mat Fac Used RIF Installer . | . . . . . Robots Hacked . | . . . . . Non-combat . | . . . . . Combat . | . . . . . Robot Hacks Applied . | . . . . . Relay Couplers Released 3 | . . . 3 . Machine Destruction 3 | . . . 3 . Fabnet Peak Effective % . | . . . . . Robots Rewired . | . . . . . Allies Hacked . | . . . . . Hacks Repelled . | . . . . . Allies | -11 -10 -9 -8 -7 -------- Run | Yrd Mat Mat Mat Fac Total Allies . | . . . . . Largest Group . | . . . . . Highest-Rated Group . | . . . . . Highest-Rated Ally . | . . . . . Total Orders . | . . . . . Ally Attacks . | . . . . . Total Damage . | . . . . . Kills . | . . . . . Allies Corrupted . | . . . . . Allies Melted . | . . . . . Intel | -11 -10 -9 -8 -7 ------- Run | Yrd Mat Mat Mat Fac Robot Analysis Total . | . . . . . Derelict Logs Recovered . | . . . . . Drone Launches . | . . . . . Drone Recoveries . | . . . . . Exploration | -11 -10 -9 -8 -7 ------------- Run | Yrd Mat Mat Mat Fac Turns Passed 2391 | 83 103 591 947 667 Spaces Moved 1685 | 81 111 421 623 449 Core 27 | 20 . . . 7 Treads . | . . . . . Legs 17 | . . 17 . . Wheels 1540 | 61 111 404 623 341 Hover 101 | . . . . 101 Flight . | . . . . . Fastest Speed 50 | 50 80 80 95 100 Average Speed 102 | 72 80 98 106 112 Slowest Speed 550 | 80 80 260 135 550 Overloaded Moves . | . . . . . Propulsion Burnouts . | . . . . . Robots Hopped . | . . . . . Cave-ins Triggered . | . . . . . Exploration Rate (%) 22 | 5 23 26 45 13 Regions Visited 4 Branch Regions . Pre-discovered Areas . | . . . . . Known Exits Taken . | . . . . . Unknown Exits Taken 4 | 1 1 1 1 . Scrap Searched . | . . . . . Spaces Dug . | . . . . . Terrain Destroyed 214 | . . 94 95 25 Melee . | . . . . . Projectile 13 | . . 3 9 1 AOE 201 | . . 91 86 24 Terrain Rammed . | . . . . . Walls Destroyed . | . . . . . Machines Disabled . | . . . . . Actions | -11 -10 -9 -8 -7 --------- Run | Yrd Mat Mat Mat Fac Total 2081 | 99 117 528 798 539 Wait 84 | . 1 15 58 10 Move 1681 | 80 110 420 622 449 Hop . | . . . . . Pick Up 68 | 10 1 18 24 15 Fast Attach 12 | . . 5 3 4 Attach 36 | 6 1 9 9 11 Detach 1 | . . 1 . . Swap 40 | . . 12 19 9 Drop 31 | . . 10 12 9 Fire 125 | 3 4 38 49 31 Melee . | . . . . . Ram 3 | . . . 2 1 Kick . | . . . . . Crush . | . . . . . Escape Stasis . | . . . . . Rewire . | . . . . . Trap . | . . . . . Miscellaneous . | . . . . . Route ------- -11/Scrapyard -10/Materials -9/Materials -8/Materials -7/Factory History --------- Turn | Location | Event 2 | -11/Scrapyard | Met Revision 17 57 | -11/Scrapyard | Discovered new exit (range 8) 84 | -11/Scrapyard | Entered Materials 158 | -10/Materials | Discovered new exit (range 11) 187 | -10/Materials | Entered another Materials area 187 | -9/Materials | Evolved 2 slots: Utility x2 308 | -9/Materials | Build established: Mutant 773 | -9/Materials | Lost 5 parts (1p1n2u1w) 776 | -9/Materials | Discovered new exit (range 3) 778 | -9/Materials | Entered another Materials area 778 | -8/Materials | Evolved 2 slots: Utility x1, Weapon x1 1040 | -8/Materials | Lost 4 parts (1p1n1u1w) 1423 | -8/Materials | Build established: Gunner 1697 | -8/Materials | Discovered new exit (range 15) 1725 | -8/Materials | Entered Factory 1725 | -7/Factory | Evolved 2 slots: Power x1, Weapon x1 2008 | -7/Factory | Lost 3 parts (1u2w) 2099 | -7/Factory | Lost 4 parts (1p1n1u1w) 2125 | -7/Factory | First assault squad dispatched 2295 | -7/Factory | Lost 3 parts (2p1u) 2338 | -7/Factory | Core integrity fell below 50% 2376 | -7/Factory | Core integrity fell below 20% 2392 | -7/Factory | Destroyed by G-47 Trooper with Particle Gun Last Messages --------------- R-06 Scavenger collects Lgt. Treads. Gauss Rifle destroyed. Assault Cannon destroyed. R-06 Scavenger collects Imp. Light Armor Plating. R-06 Scavenger collects Mace. R-06 Scavenger collects Corrupted Lgt. Treads. Imp. EM Pulse Cannon destroyed. M-28 Smith repairs I-36 Angel. Field Laser destroyed. Imp. Heat Sink destroyed. Critical hit (Burn: +37). K-01 Serf collects debris. Shock Rifle destroyed. System corrupted: Energy discharge (-9). K-01 Serf collects debris. Broken Armor Integrity Analyzer destroyed. K-01 Serf collects debris. K-01 Serf cleans the Fabricator. [Achievement: 5k Club] Map ----- +----------------------------------------------------+ | #????# #???????????????????? | | #????# %#???????????????????? | | ^ #????# #???????????????????? | | ###### #???????????????????? | | #???????????????????? | | ##+########## #???????????????????? | | [* #??# #???????????????????? | | """ #??# """" """" #???????????????????? | | F" """ #??# """" """" #???????????????????? | | "" """ ##?# """" """" #???????????????????? | | #### #???????????????????? | | ########## # """" """ #???????????????????? | | # """" """ #???????????????????? | | # """" """ #???????????????????? | | " # #????????? ?????????? | | " # = # """" """" #???????? ????????? | | " # % # """" """" m #???????" ""????????? | | # % + """" """" #??????"" ""????????? | | #% # #??????"" "?????????? | | % # """" """" #?????? ??????????? | | ###% % # """" """" #######+############# | | % ! # """" """" u | | #### T" # | | #??# # | | #??########## g i | | ######??????# k @ g u a | | ?????# #"F""#############/#########???? | | " ??????# #""""????????# % #????? | | ????### #####????????# #????? | | " ??????"" #????????????# #????? | | "???????? #????#####???# #????? | | "????????# #??? ???# #????? | | ?????????# #??? ????# #????? | | ??????????# #?? ????# = #????? | | +############ #? ?????# #????? | | = # """"??????# #????? | | " # """" ?????# #????? | | """"" """""""""% + """" ?????# #????? | | %% # """" ?????# #????? | | """"" """"""""" #??""""??????##############????? | | #????""????????????????????????? | | """"" """"""""" #??????????????????????????????? | | #??????????????????????????????? | | """"" """"""""" #??????????????????????????????? | | #??????????????????????????????? | | ??????????????????????????????? | | ##?????????????????????????????? | | ###############/###??????????????????????????????? | | ?????????????? ????????????????????????????????? | | ?????????????? ?????????????????????????????????? | +----------------------------------------------------+ Best States ------------- Heat Dissipation 67 Energy Generation 23 Energy Capacity 300 Matter Stores 300 Matter Capacity 300 Sight Range 16 Terrain Scan Density 110 Additional Mass Support 9 Armor Coverage 450 Evasion (%) 50 Targeting Accuracy 8 Melee Accuracy 5 Armor Integrity Analysis 30 Item Schematics ----------------- None Robot Schematics ------------------ None Fabricated ------------ Nothing Alien Tech Used ----------------- None Achievements -------------- 5k Club Crack Shot Loot Pinata Please Form A Line Remodeling Shopping List Significant Disruption Use The Force Challenges ------------ None Game ------ Seed IonicCargoAutocannon Manual? 0 Play Time 00:58:36 Cumulative 2.7 hours Start 2024.04.04 @ 15:19:09 End 2024.04.04 @ 22:48:30 Sessions 3 Manual Loads 0 Difficulty Rogue Special Mode None Game No. 3 Rogue 3 Adventurer 0 Explorer 0 Win Type - Total 0 Types 0/0/0/0/0/0/0/0/0 Lore% 1 Gallery% 6 Achievement% 7 Wizard Run 0 Options --------- Layout 1 ASCII 0 Keyboard 0 Movement Mouse Keybinds 0 Fullscreen 2 Font 24/Smallcaps Map View 50x35 Zoom Use 0% Tactical HUD 0 Map Filters NONE Filters NONE Steam 1 RUN: 9ed2ce86-de8c-4a80-89b8-addfb5edb2ed